[Event "Titled Tuesday Blitz March 07 Late 2023"]
[White "Naroditsky, Daniel"]
[Black "Indjic, Aleksandar"]
[WhiteFideId "2026961"]
[BlackFideId "911925"]
[WhiteElo "2633"]
[BlackElo "2614"]
[Result "1/2-1/2"]
[Round "07"]
[TimeControl "180+2"]
[Date "2023.03.07"]
[WhiteClock "0:00:21"]
[BlackClock "0:01:17"]

1. d4 {[%clk 0:03:00]}  Nf6 {[%clk 0:03:00]} 2. Nc3 {[%clk 0:03:01]}  d5 {[%clk 0:02:59]} 3. Bf4 {[%clk 0:03:02]}  c5 {[%clk 0:02:58]} 4. e4 {[%clk 0:02:56]}  Nxe4 {[%clk 0:02:56]} 5. Nxe4 {[%clk 0:02:56]}  dxe4 {[%clk 0:02:57]} 6. dxc5 {[%clk 0:02:57]}  Qa5+ {[%clk 0:02:56]} 7. c3 {[%clk 0:02:58]}  Qxc5 {[%clk 0:02:56]} 8. Qa4+ {[%clk 0:02:58]}  Nc6 {[%clk 0:02:54]} 9. Qxe4 {[%clk 0:02:59]}  Bf5 {[%clk 0:02:53]} 10. Qc4 {[%clk 0:02:56]}  Qxc4 {[%clk 0:02:46]} 11. Bxc4 {[%clk 0:02:57]}  e6 {[%clk 0:02:46]} 12. Nf3 {[%clk 0:02:54]}  O-O-O {[%clk 0:02:42]} 13. O-O {[%clk 0:02:42]}  h6 {[%clk 0:02:40]} 14. Be3 {[%clk 0:02:40]}  a6 {[%clk 0:02:39]} 15. Bb6 {[%clk 0:02:24]}  Rd7 {[%clk 0:02:29]} 16. Rad1 {[%clk 0:02:24]}  Bd6 {[%clk 0:02:26]} 17. h3 {[%clk 0:02:22]}  Bc7 {[%clk 0:02:25]} 18. Rxd7 {[%clk 0:02:13]}  Kxd7 {[%clk 0:02:25]} 19. Be3 {[%clk 0:02:12]}  Kc8 {[%clk 0:02:23]} 20. Rd1 {[%clk 0:02:11]}  Rd8 {[%clk 0:02:22]} 21. Rxd8+ {[%clk 0:02:11]}  Kxd8 {[%clk 0:02:22]} 22. Kf1 {[%clk 0:02:11]}  g5 {[%clk 0:02:23]} 23. Nd4 {[%clk 0:02:08]}  Nxd4 {[%clk 0:02:20]} 24. Bxd4 {[%clk 0:02:09]}  Ke7 {[%clk 0:02:07]} 25. Ke2 {[%clk 0:02:10]}  Be4 {[%clk 0:02:03]} 26. f3 {[%clk 0:02:08]}  Bc6 {[%clk 0:02:01]} 27. b4 {[%clk 0:02:04]}  b5 {[%clk 0:01:55]} 28. Bb3 {[%clk 0:02:00]}  f6 {[%clk 0:01:51]} 29. c4 {[%clk 0:01:58]}  Bd6 {[%clk 0:01:50]} 30. a3 {[%clk 0:01:54]}  h5 {[%clk 0:01:50]} 31. c5 {[%clk 0:01:38]}  Bf4 {[%clk 0:01:48]} 32. Bb2 {[%clk 0:01:28]}  f5 {[%clk 0:01:48]} 33. Kf2 {[%clk 0:01:23]}  h4 {[%clk 0:01:41]} 34. Bc2 {[%clk 0:01:12]}  Bd5 {[%clk 0:01:31]} 35. Bd3 {[%clk 0:01:10]}  Kd7 {[%clk 0:01:30]} 36. Be2 {[%clk 0:01:01]}  Kc6 {[%clk 0:01:29]} 37. Bd3 {[%clk 0:01:01]}  Bb3 {[%clk 0:01:22]} 38. Ke2 {[%clk 0:01:00]}  Bd5 {[%clk 0:01:21]} 39. Kf2 {[%clk 0:01:00]}  Kc7 {[%clk 0:01:21]} 40. Bb1 {[%clk 0:00:57]}  Kd7 {[%clk 0:01:21]} 41. Bd3 {[%clk 0:00:58]}  Kc6 {[%clk 0:01:21]} 42. Ke2 {[%clk 0:00:41]}  g4 {[%clk 0:01:17]} 43. hxg4 {[%clk 0:00:36]}  fxg4 {[%clk 0:01:18]} 44. Be4 {[%clk 0:00:36]}  Bxe4 {[%clk 0:01:17]} 45. fxe4 {[%clk 0:00:37]}  h3 {[%clk 0:01:17]} 46. gxh3 {[%clk 0:00:36]}  gxh3 {[%clk 0:01:17]} 47. Kf3 {[%clk 0:00:37]}  e5 {[%clk 0:01:15]} 48. Kf2 {[%clk 0:00:34]}  Kc7 {[%clk 0:01:14]} 49. Kf3 {[%clk 0:00:32]}  Kd7 {[%clk 0:01:15]} 50. Kf2 {[%clk 0:00:32]}  Ke6 {[%clk 0:01:15]} 51. Kf3 {[%clk 0:00:32]}  Kd7 {[%clk 0:01:15]} 52. Kf2 {[%clk 0:00:32]}  Kc6 {[%clk 0:01:15]} 53. Kf3 {[%clk 0:00:33]}  a5 {[%clk 0:01:15]} 54. bxa5 {[%clk 0:00:22]}  Kxc5 {[%clk 0:01:15]} 55. Bc3 {[%clk 0:00:22]}  Kc6 {[%clk 0:01:16]} 56. Bb4 {[%clk 0:00:20]}  Kb7 {[%clk 0:01:16]} 57. Kf2 {[%clk 0:00:19]}  Ka6 {[%clk 0:01:16]} 58. Kf3 {[%clk 0:00:20]}  Kb7 {[%clk 0:01:16]} 59. Kf2 {[%clk 0:00:20]}  Ka6 {[%clk 0:01:17]} 60. Kf3 {[%clk 0:00:21]}  Kb7 {[%clk 0:01:17]} 1/2-1/2


[Site "https://www.chess.com"]

[Event "Titled Tuesday Blitz March 07 Late 2023"]
[White "Rustemov, Alexander"]
[Black "Deac, Bogdan-Daniel"]
[WhiteFideId "4119002"]
[BlackFideId "1226380"]
[WhiteElo "2866"]
[BlackElo "2649"]
[Result "1-0"]
[Round "07"]
[TimeControl "180+2"]
[Date "2023.03.07"]
[WhiteClock "0:00:10"]
[BlackClock "0:00:02"]

1. d4 {[%clk 0:03:00]}  Nf6 {[%clk 0:03:00]} 2. Nf3 {[%clk 0:03:00]}  e6 {[%clk 0:02:59]} 3. Bg5 {[%clk 0:02:59]}  c5 {[%clk 0:02:56]} 4. e3 {[%clk 0:02:59]}  h6 {[%clk 0:02:56]} 5. Bh4 {[%clk 0:02:53]}  cxd4 {[%clk 0:02:52]} 6. exd4 {[%clk 0:02:53]}  Qb6 {[%clk 0:02:53]} 7. Bxf6 {[%clk 0:02:39]}  Qxb2 {[%clk 0:02:28]} 8. Nbd2 {[%clk 0:02:32]}  gxf6 {[%clk 0:02:28]} 9. Bd3 {[%clk 0:02:32]}  f5 {[%clk 0:02:03]} 10. O-O {[%clk 0:02:31]}  Bg7 {[%clk 0:02:03]} 11. Nc4 {[%clk 0:02:23]}  Qb4 {[%clk 0:02:02]} 12. Rb1 {[%clk 0:02:20]}  Qe7 {[%clk 0:02:02]} 13. d5 {[%clk 0:02:15]}  O-O {[%clk 0:01:59]} 14. Re1 {[%clk 0:02:13]}  Qc5 {[%clk 0:01:56]} 15. Ne3 {[%clk 0:02:08]}  b6 {[%clk 0:01:49]} 16. Nh4 {[%clk 0:02:03]}  Ba6 {[%clk 0:01:27]} 17. Nexf5 {[%clk 0:01:59]}  exf5 {[%clk 0:01:27]} 18. Nxf5 {[%clk 0:01:59]}  Qc3 {[%clk 0:00:26]} 19. Qg4 {[%clk 0:01:42]}  Qf6 {[%clk 0:00:25]} 20. c4 {[%clk 0:01:32]}  Kh8 {[%clk 0:00:09]} 21. Re3 {[%clk 0:01:31]}  d6 {[%clk 0:00:09]} 22. Rg3 {[%clk 0:01:24]}  Rg8 {[%clk 0:00:07]} 23. Nxh6 {[%clk 0:01:18]}  Qxh6 {[%clk 0:00:06]} 24. Rh3 {[%clk 0:01:18]}  Bc8 {[%clk 0:00:06]} 25. Rxh6+ {[%clk 0:01:15]}  Bxh6 {[%clk 0:00:07]} 26. Qh5 {[%clk 0:01:10]}  Kg7 {[%clk 0:00:07]} 27. Re1 {[%clk 0:01:05]}  Nd7 {[%clk 0:00:07]} 28. Re7 {[%clk 0:01:04]}  Ne5 {[%clk 0:00:07]} 29. Bf5 {[%clk 0:00:59]}  Bxf5 {[%clk 0:00:06]} 30. Qxf5 {[%clk 0:00:59]}  Rge8 {[%clk 0:00:06]} 31. Rc7 {[%clk 0:00:56]}  Rf8 {[%clk 0:00:07]} 32. f4 {[%clk 0:00:53]}  Ng6 {[%clk 0:00:06]} 33. g3 {[%clk 0:00:52]}  Rae8 {[%clk 0:00:07]} 34. Kf2 {[%clk 0:00:51]}  Re7 {[%clk 0:00:06]} 35. Rxe7 {[%clk 0:00:49]}  Nxe7 {[%clk 0:00:07]} 36. Qd7 {[%clk 0:00:50]}  Ng6 {[%clk 0:00:07]} 37. h4 {[%clk 0:00:43]}  Rb8 {[%clk 0:00:05]} 38. h5 {[%clk 0:00:42]}  Nf8 {[%clk 0:00:05]} 39. Qxa7 {[%clk 0:00:41]}  Rc8 {[%clk 0:00:05]} 40. Qa6 {[%clk 0:00:33]}  Rc5 {[%clk 0:00:05]} 41. Qxb6 {[%clk 0:00:30]}  Rxc4 {[%clk 0:00:04]} 42. Kf3 {[%clk 0:00:27]}  Nd7 {[%clk 0:00:03]} 43. Qxd6 {[%clk 0:00:27]}  Nf6 {[%clk 0:00:04]} 44. Qe5 {[%clk 0:00:23]}  Ra4 {[%clk 0:00:04]} 45. g4 {[%clk 0:00:22]}  Rxf4+ {[%clk 0:00:03]} 46. Ke2 {[%clk 0:00:18]}  Re4+ {[%clk 0:00:03]} 47. Qxe4 {[%clk 0:00:12]}  Nxe4 {[%clk 0:00:03]} 48. Kd3 {[%clk 0:00:12]}  Nd6 {[%clk 0:00:04]} 49. a4 {[%clk 0:00:12]}  Nb7 {[%clk 0:00:04]} 50. Kc4 {[%clk 0:00:11]}  Be3 {[%clk 0:00:03]} 51. Kb5 {[%clk 0:00:11]}  Kf6 {[%clk 0:00:03]} 52. Kc6 {[%clk 0:00:11]}  Nc5 {[%clk 0:00:03]} 53. a5 {[%clk 0:00:10]}  Ke7 {[%clk 0:00:03]} 54. d6+ {[%clk 0:00:10]}  Kd8 {[%clk 0:00:02]} 55. h6 {[%clk 0:00:10]} 1-0


[Site "https://www.chess.com"]

[Event "Titled Tuesday Blitz March 07 Late 2023"]
[White "Samsonkin, Artiom"]
[Black "Lenderman, Aleksandr"]
[WhiteFideId "13503111"]
[BlackFideId "2021285"]
[WhiteElo "2524"]
[BlackElo "2607"]
[Result "1-0"]
[Round "07"]
[TimeControl "180+2"]
[Date "2023.03.07"]
[WhiteClock "0:00:13"]
[BlackClock "0:00:11"]

1. e4 {[%clk 0:03:00]}  e6 {[%clk 0:02:58]} 2. d4 {[%clk 0:03:01]}  d5 {[%clk 0:02:59]} 3. Nc3 {[%clk 0:02:58]}  dxe4 {[%clk 0:02:59]} 4. Nxe4 {[%clk 0:02:58]}  Nd7 {[%clk 0:03:00]} 5. Nf3 {[%clk 0:02:58]}  Ngf6 {[%clk 0:02:59]} 6. Bd3 {[%clk 0:02:59]}  c5 {[%clk 0:02:57]} 7. Qe2 {[%clk 0:02:46]}  Be7 {[%clk 0:02:53]} 8. Nxf6+ {[%clk 0:02:32]}  Nxf6 {[%clk 0:02:42]} 9. dxc5 {[%clk 0:02:30]}  Bxc5 {[%clk 0:02:42]} 10. Bg5 {[%clk 0:02:29]}  Qc7 {[%clk 0:02:40]} 11. O-O-O {[%clk 0:02:15]}  O-O {[%clk 0:02:38]} 12. Bxf6 {[%clk 0:01:45]}  Qf4+ {[%clk 0:02:34]} 13. Kb1 {[%clk 0:01:43]}  Qxf6 {[%clk 0:02:33]} 14. Qe4 {[%clk 0:01:32]}  g6 {[%clk 0:02:32]} 15. h4 {[%clk 0:01:32]}  Bd7 {[%clk 0:02:24]} 16. Ne5 {[%clk 0:01:28]}  Bc6 {[%clk 0:02:23]} 17. Ng4 {[%clk 0:00:50]}  Qg7 {[%clk 0:02:21]} 18. Qc4 {[%clk 0:00:43]}  b6 {[%clk 0:02:06]} 19. h5 {[%clk 0:00:43]}  Bd5 {[%clk 0:01:11]} 20. Qf4 {[%clk 0:00:43]}  g5 {[%clk 0:01:12]} 21. Nf6+ {[%clk 0:00:22]}  Kh8 {[%clk 0:01:12]} 22. h6 {[%clk 0:00:22]}  gxf4 {[%clk 0:01:10]} 23. hxg7+ {[%clk 0:00:23]}  Kxg7 {[%clk 0:01:10]} 24. Nh5+ {[%clk 0:00:19]}  Kh8 {[%clk 0:01:10]} 25. Nxf4 {[%clk 0:00:20]}  f5 {[%clk 0:01:06]} 26. c4 {[%clk 0:00:18]}  Bc6 {[%clk 0:00:54]} 27. Ng6+ {[%clk 0:00:14]}  Kg7 {[%clk 0:00:53]} 28. Nxf8 {[%clk 0:00:15]}  Rxf8 {[%clk 0:00:53]} 29. Be2 {[%clk 0:00:15]}  Be4+ {[%clk 0:00:45]} 30. Ka1 {[%clk 0:00:15]}  Bxf2 {[%clk 0:00:43]} 31. Rd7+ {[%clk 0:00:12]}  Kf6 {[%clk 0:00:42]} 32. Bf3 {[%clk 0:00:11]}  Rg8 {[%clk 0:00:29]} 33. a3 {[%clk 0:00:10]}  a5 {[%clk 0:00:23]} 34. Rhxh7 {[%clk 0:00:09]}  Rg6 {[%clk 0:00:17]} 35. Bxe4 {[%clk 0:00:09]}  fxe4 {[%clk 0:00:17]} 36. Rhf7+ {[%clk 0:00:09]}  Ke5 {[%clk 0:00:12]} 37. Rxf2 {[%clk 0:00:10]}  e3 {[%clk 0:00:12]} 38. Re2 {[%clk 0:00:10]}  Ke4 {[%clk 0:00:13]} 39. Rd1 {[%clk 0:00:11]}  e5 {[%clk 0:00:13]} 40. Rde1 {[%clk 0:00:11]}  Rg3 {[%clk 0:00:13]} 41. Ka2 {[%clk 0:00:12]}  Kd3 {[%clk 0:00:14]} 42. b4 {[%clk 0:00:11]}  a4 {[%clk 0:00:13]} 43. c5 {[%clk 0:00:12]}  bxc5 {[%clk 0:00:11]} 44. bxc5 {[%clk 0:00:12]}  Kd4 {[%clk 0:00:11]} 45. c6 {[%clk 0:00:11]}  Rg7 {[%clk 0:00:12]} 46. Rxe3 {[%clk 0:00:10]}  Rxg2+ {[%clk 0:00:12]} 47. R3e2 {[%clk 0:00:10]}  Rg7 {[%clk 0:00:12]} 48. Rc1 {[%clk 0:00:11]}  Rc7 {[%clk 0:00:11]} 49. Rd2+ {[%clk 0:00:12]}  Ke3 {[%clk 0:00:11]} 50. Rd7 {[%clk 0:00:12]}  Rc8 {[%clk 0:00:11]} 51. c7 {[%clk 0:00:13]} 1-0


[Site "https://www.chess.com"]

[Event "Titled Tuesday Blitz March 07 Late 2023"]
[White "Real_OceanStorm"]
[Black "Liang, Awonder"]
[BlackFideId "2056437"]
[WhiteElo "2802"]
[BlackElo "2508"]
[Result "0-1"]
[Round "07"]
[TimeControl "180+2"]
[Date "2023.03.07"]
[WhiteClock "0:00:03"]
[BlackClock "0:00:02"]

1. e4 {[%clk 0:03:00]}  b6 {[%clk 0:02:59]} 2. Nc3 {[%clk 0:02:58]}  Bb7 {[%clk 0:02:59]} 3. d4 {[%clk 0:02:58]}  e6 {[%clk 0:03:00]} 4. Bd3 {[%clk 0:02:57]}  d6 {[%clk 0:03:01]} 5. Nf3 {[%clk 0:02:57]}  Nd7 {[%clk 0:03:01]} 6. O-O {[%clk 0:02:56]}  g6 {[%clk 0:03:02]} 7. d5 {[%clk 0:02:42]}  e5 {[%clk 0:03:01]} 8. Bb5 {[%clk 0:02:41]}  Ne7 {[%clk 0:02:57]} 9. Be3 {[%clk 0:02:40]}  Bg7 {[%clk 0:02:57]} 10. h3 {[%clk 0:02:38]}  a6 {[%clk 0:02:57]} 11. Bd3 {[%clk 0:02:38]}  O-O {[%clk 0:02:56]} 12. a3 {[%clk 0:02:39]}  h6 {[%clk 0:02:56]} 13. Qd2 {[%clk 0:02:39]}  Kh7 {[%clk 0:02:56]} 14. Rfe1 {[%clk 0:02:35]}  Bc8 {[%clk 0:02:51]} 15. g4 {[%clk 0:02:14]}  Nc5 {[%clk 0:02:43]} 16. Bf1 {[%clk 0:02:13]}  f5 {[%clk 0:02:39]} 17. exf5 {[%clk 0:01:52]}  gxf5 {[%clk 0:02:40]} 18. b4 {[%clk 0:01:48]}  fxg4 {[%clk 0:01:47]} 19. Nh2 {[%clk 0:01:07]}  Nd7 {[%clk 0:01:37]} 20. Bd3+ {[%clk 0:01:07]}  Kg8 {[%clk 0:01:30]} 21. Nxg4 {[%clk 0:00:34]}  Nf6 {[%clk 0:01:24]} 22. Nxh6+ {[%clk 0:00:25]}  Kh8 {[%clk 0:01:24]} 23. Kh1 {[%clk 0:00:08]}  Qe8 {[%clk 0:01:19]} 24. Rg1 {[%clk 0:00:07]}  Qh5 {[%clk 0:01:19]} 25. Rg3 {[%clk 0:00:07]}  Bxh3 {[%clk 0:01:16]} 26. Kg1 {[%clk 0:00:03]}  Ng4 {[%clk 0:00:39]} 27. Nxg4 {[%clk 0:00:03]}  Bxg4 {[%clk 0:00:40]} 28. Rg2 {[%clk 0:00:03]}  Bh3 {[%clk 0:00:32]} 29. Rg5 {[%clk 0:00:01]}  Qh4 {[%clk 0:00:31]} 30. Qd1 {[%clk 0:00:01]}  Bh6 {[%clk 0:00:25]} 31. Rh5 {[%clk 0:00:01]}  Rg8+ {[%clk 0:00:26]} 32. Kh2 {[%clk 0:00:02]}  Rg2+ {[%clk 0:00:15]} 33. Kh1 {[%clk 0:00:02]}  Nf5 {[%clk 0:00:16]} 34. Bxf5 {[%clk 0:00:01]}  Qg3 {[%clk 0:00:02]} 35. Rxh6+ {[%clk 0:00:02]}  Kg7 {[%clk 0:00:02]} 36. Rg6+ {[%clk 0:00:02]}  Qxg6 {[%clk 0:00:02]} 37. Bxg6 {[%clk 0:00:03]}  Rh8 {[%clk 0:00:02]} 0-1


[Site "https://www.chess.com"]

[Event "Titled Tuesday Blitz March 07 Late 2023"]
[White "Kosakowski, Jakub"]
[Black "Andreikin, Dmitry"]
[WhiteFideId "1185080"]
[BlackFideId "4158814"]
[WhiteElo "2488"]
[BlackElo "2736"]
[Result "0-1"]
[Round "07"]
[TimeControl "180+2"]
[Date "2023.03.07"]
[WhiteClock "0:00:24"]
[BlackClock "0:01:13"]

1. d4 {[%clk 0:02:43]}  d5 {[%clk 0:02:59]} 2. Nf3 {[%clk 0:02:43]}  Nf6 {[%clk 0:02:59]} 3. c4 {[%clk 0:02:42]}  e6 {[%clk 0:03:00]} 4. g3 {[%clk 0:02:42]}  dxc4 {[%clk 0:02:54]} 5. Bg2 {[%clk 0:02:41]}  Nc6 {[%clk 0:02:53]} 6. O-O {[%clk 0:02:41]}  Rb8 {[%clk 0:02:52]} 7. a4 {[%clk 0:02:32]}  a6 {[%clk 0:02:47]} 8. e3 {[%clk 0:02:19]}  Bd7 {[%clk 0:02:42]} 9. Nfd2 {[%clk 0:02:14]}  b5 {[%clk 0:02:41]} 10. axb5 {[%clk 0:02:14]}  axb5 {[%clk 0:02:42]} 11. b3 {[%clk 0:02:14]}  cxb3 {[%clk 0:02:41]} 12. Nxb3 {[%clk 0:02:14]}  Be7 {[%clk 0:02:39]} 13. Nc3 {[%clk 0:02:12]}  O-O {[%clk 0:02:38]} 14. Bb2 {[%clk 0:02:12]}  Nb4 {[%clk 0:02:37]} 15. Qe2 {[%clk 0:02:10]}  Nbd5 {[%clk 0:02:28]} 16. Rfc1 {[%clk 0:02:06]}  b4 {[%clk 0:02:22]} 17. Na4 {[%clk 0:02:04]}  Bb5 {[%clk 0:01:57]} 18. Qe1 {[%clk 0:02:01]}  c6 {[%clk 0:01:55]} 19. Nac5 {[%clk 0:01:51]}  h5 {[%clk 0:01:54]} 20. e4 {[%clk 0:01:49]}  Nc7 {[%clk 0:01:49]} 21. Qxb4 {[%clk 0:01:45]}  Bf1 {[%clk 0:01:47]} 22. Qd2 {[%clk 0:01:42]}  Bxg2 {[%clk 0:01:46]} 23. Kxg2 {[%clk 0:01:42]}  Nxe4 {[%clk 0:01:46]} 24. Nxe4 {[%clk 0:01:33]}  Qd5 {[%clk 0:01:34]} 25. Ra5 {[%clk 0:01:19]}  Qxe4+ {[%clk 0:01:28]} 26. f3 {[%clk 0:01:15]}  Qg6 {[%clk 0:01:28]} 27. Nc5 {[%clk 0:01:10]}  Bg5 {[%clk 0:01:24]} 28. f4 {[%clk 0:00:44]}  Bxf4 {[%clk 0:01:24]} 29. Qxf4 {[%clk 0:00:45]}  Rxb2+ {[%clk 0:01:24]} 30. Kh3 {[%clk 0:00:46]}  Nd5 {[%clk 0:01:22]} 31. Qg5 {[%clk 0:00:30]}  Rxh2+ {[%clk 0:01:16]} 32. Kxh2 {[%clk 0:00:28]}  Qxg5 {[%clk 0:01:17]} 33. Rb5 {[%clk 0:00:26]}  h4 {[%clk 0:01:16]} 34. Kh3 {[%clk 0:00:24]}  Nf4+ {[%clk 0:01:15]} 35. Kh2 {[%clk 0:00:24]}  Qxg3+ {[%clk 0:01:13]} 36. Kh1 {[%clk 0:00:24]}  Qg2# {[%clk 0:01:13]} 0-1


[Site "https://www.chess.com"]

[Event "Titled Tuesday Blitz March 07 Late 2023"]
[White "Caruana, Fabiano"]
[Black "Iskusnyh, Sergei"]
[WhiteFideId "2020009"]
[BlackFideId "4120027"]
[WhiteElo "2818"]
[BlackElo "2492"]
[Result "1-0"]
[Round "07"]
[TimeControl "180+2"]
[Date "2023.03.07"]
[WhiteClock "0:00:10"]
[BlackClock "0:00:02"]

1. c4 {[%clk 0:03:00]}  e5 {[%clk 0:02:51]} 2. g3 {[%clk 0:03:00]}  c6 {[%clk 0:02:48]} 3. Nf3 {[%clk 0:02:59]}  e4 {[%clk 0:02:44]} 4. Nd4 {[%clk 0:02:59]}  d5 {[%clk 0:02:41]} 5. d3 {[%clk 0:02:54]}  Bc5 {[%clk 0:02:40]} 6. Nb3 {[%clk 0:02:52]}  Bb4+ {[%clk 0:02:39]} 7. Bd2 {[%clk 0:02:50]}  Bxd2+ {[%clk 0:02:39]} 8. N1xd2 {[%clk 0:02:44]}  exd3 {[%clk 0:02:29]} 9. cxd5 {[%clk 0:02:39]}  Nf6 {[%clk 0:02:12]} 10. e4 {[%clk 0:02:09]}  cxd5 {[%clk 0:01:46]} 11. Bxd3 {[%clk 0:02:04]}  O-O {[%clk 0:01:37]} 12. O-O {[%clk 0:02:02]}  Nc6 {[%clk 0:01:34]} 13. Re1 {[%clk 0:01:45]}  Bg4 {[%clk 0:00:59]} 14. f3 {[%clk 0:01:30]}  Bh3 {[%clk 0:00:56]} 15. e5 {[%clk 0:01:24]}  Nd7 {[%clk 0:00:37]} 16. f4 {[%clk 0:01:22]}  Qb6+ {[%clk 0:00:37]} 17. Kh1 {[%clk 0:01:22]}  Nb4 {[%clk 0:00:32]} 18. Bf1 {[%clk 0:01:09]}  Bxf1 {[%clk 0:00:31]} 19. Nxf1 {[%clk 0:01:08]}  Rac8 {[%clk 0:00:31]} 20. Ne3 {[%clk 0:01:02]}  Rfd8 {[%clk 0:00:18]} 21. a3 {[%clk 0:00:49]}  Nc2 {[%clk 0:00:17]} 22. Nxc2 {[%clk 0:00:33]}  Qxb3 {[%clk 0:00:17]} 23. Ne3 {[%clk 0:00:29]}  Qxb2 {[%clk 0:00:14]} 24. Nxd5 {[%clk 0:00:22]}  Nb6 {[%clk 0:00:13]} 25. Ne7+ {[%clk 0:00:11]}  Kh8 {[%clk 0:00:12]} 26. Nxc8 {[%clk 0:00:11]}  Rxd1 {[%clk 0:00:11]} 27. Raxd1 {[%clk 0:00:12]}  h5 {[%clk 0:00:11]} 28. Nd6 {[%clk 0:00:11]}  Kg8 {[%clk 0:00:09]} 29. Ne4 {[%clk 0:00:10]}  Kh7 {[%clk 0:00:07]} 30. Rd6 {[%clk 0:00:08]}  f6 {[%clk 0:00:05]} 31. exf6 {[%clk 0:00:08]}  gxf6 {[%clk 0:00:03]} 32. Nxf6+ {[%clk 0:00:09]}  Kg7 {[%clk 0:00:04]} 33. Nxh5+ {[%clk 0:00:09]}  Kf7 {[%clk 0:00:03]} 34. Rf6+ {[%clk 0:00:09]}  Kg8 {[%clk 0:00:03]} 35. Re8+ {[%clk 0:00:09]}  Kh7 {[%clk 0:00:02]} 36. Re7+ {[%clk 0:00:09]}  Kg8 {[%clk 0:00:02]} 37. Rg7+ {[%clk 0:00:10]} 1-0


[Site "https://www.chess.com"]

[Event "Titled Tuesday Blitz March 07 Late 2023"]
[White "Maksimovic, Bojan"]
[Black "Derige Kane, Yan"]
[WhiteFideId "14408120"]
[BlackFideId "20665431"]
[WhiteElo "2468"]
[BlackElo "2149"]
[Result "1-0"]
[Round "07"]
[TimeControl "180+2"]
[Date "2023.03.07"]
[WhiteClock "0:00:05"]
[BlackClock "0:00:05"]

1. Nf3 {[%clk 0:03:00]}  Nf6 {[%clk 0:02:57]} 2. g3 {[%clk 0:03:00]}  e6 {[%clk 0:02:58]} 3. Bg2 {[%clk 0:03:00]}  d5 {[%clk 0:02:58]} 4. O-O {[%clk 0:03:00]}  Be7 {[%clk 0:02:59]} 5. d3 {[%clk 0:03:01]}  O-O {[%clk 0:03:00]} 6. Nbd2 {[%clk 0:03:01]}  c5 {[%clk 0:02:59]} 7. e4 {[%clk 0:03:01]}  b5 {[%clk 0:02:59]} 8. Re1 {[%clk 0:02:59]}  Nc6 {[%clk 0:02:59]} 9. c3 {[%clk 0:02:47]}  a5 {[%clk 0:02:57]} 10. a4 {[%clk 0:02:46]}  b4 {[%clk 0:02:57]} 11. exd5 {[%clk 0:02:45]}  exd5 {[%clk 0:02:57]} 12. Nb3 {[%clk 0:02:44]}  Bg4 {[%clk 0:02:52]} 13. h3 {[%clk 0:02:40]}  Bh5 {[%clk 0:02:52]} 14. g4 {[%clk 0:02:36]}  Bg6 {[%clk 0:02:52]} 15. Nh4 {[%clk 0:02:36]}  Qc7 {[%clk 0:02:35]} 16. Nxg6 {[%clk 0:02:34]}  hxg6 {[%clk 0:02:36]} 17. g5 {[%clk 0:02:11]}  Nh5 {[%clk 0:02:36]} 18. Bxd5 {[%clk 0:02:10]}  Bd6 {[%clk 0:02:37]} 19. Qf3 {[%clk 0:02:01]}  Ra6 {[%clk 0:02:20]} 20. Bxc6 {[%clk 0:01:34]}  Rxc6 {[%clk 0:02:21]} 21. Nxa5 {[%clk 0:01:34]}  Ra6 {[%clk 0:02:16]} 22. Nc4 {[%clk 0:01:34]}  Bf4 {[%clk 0:02:09]} 23. Bxf4 {[%clk 0:01:27]}  Nxf4 {[%clk 0:02:10]} 24. Re4 {[%clk 0:01:26]}  Ne6 {[%clk 0:02:09]} 25. h4 {[%clk 0:01:27]}  bxc3 {[%clk 0:02:04]} 26. bxc3 {[%clk 0:01:26]}  Rfa8 {[%clk 0:02:05]} 27. a5 {[%clk 0:01:26]}  Rb8 {[%clk 0:02:00]} 28. Ree1 {[%clk 0:01:15]}  Rd8 {[%clk 0:01:58]} 29. Rab1 {[%clk 0:01:14]}  Nf4 {[%clk 0:01:55]} 30. Rb7 {[%clk 0:01:00]}  Nh3+ {[%clk 0:01:40]} 31. Kf1 {[%clk 0:00:50]}  Rxd3 {[%clk 0:01:20]} 32. Rxc7 {[%clk 0:00:20]}  Rxf3 {[%clk 0:01:19]} 33. Re8+ {[%clk 0:00:20]}  Kh7 {[%clk 0:01:16]} 34. Rcc8 {[%clk 0:00:18]}  Rxf2+ {[%clk 0:01:14]} 35. Ke1 {[%clk 0:00:16]}  Re6+ {[%clk 0:01:15]} 36. Rxe6 {[%clk 0:00:15]}  fxe6 {[%clk 0:01:16]} 37. Ne5 {[%clk 0:00:11]}  Rf5 {[%clk 0:01:10]} 38. Nc6 {[%clk 0:00:08]}  Rf4 {[%clk 0:00:20]} 39. a6 {[%clk 0:00:08]}  Ra4 {[%clk 0:00:21]} 40. a7 {[%clk 0:00:09]}  Ng1 {[%clk 0:00:21]} 41. a8=Q {[%clk 0:00:08]}  Nf3+ {[%clk 0:00:19]} 42. Kf2 {[%clk 0:00:08]}  Rxa8 {[%clk 0:00:20]} 43. Rxa8 {[%clk 0:00:08]}  Nxh4 {[%clk 0:00:20]} 44. Ne5 {[%clk 0:00:05]}  Nf3 {[%clk 0:00:05]} 45. Kxf3 {[%clk 0:00:04]}  c4 {[%clk 0:00:05]} 46. Nf7 {[%clk 0:00:04]}  e5 {[%clk 0:00:05]} 47. Rh8# {[%clk 0:00:05]} 1-0


[Site "https://www.chess.com"]